bitfinex/quotes_ETHUSD_20240716
["timestamp","ask_amount","ask_price","bid_price","bid_amount"]
[1721138985980,2.94863,3391.4,3390.3,2.94958]
[1721138986305,2.94818,3392.0,3390.0,5.24763]
[1721138986306,6.05718,3392.0,3390.0,5.24763]
[1721138986509,6.05718,3392.0,3390.0,2.2978]
[1721138986510,2.94939,3390.6,3390.0,2.2978]
[1721138987000,2.94929,3390.7,3390.0,2.2978]
[1721138987207,2.94925,3390.7,3390.0,2.2978]
[1721138987412,2.94934,3390.6,3390.0,2.2978]
[1721138987566,2.94951,3390.4,3390.0,2.2978]
[1721138987904,2.94959,3390.3,3390.0,2.2978]
[1721138988272,2.94942,3390.5,3390.0,2.2978]
[1721138988467,2.94876,3391.3,3390.0,2.2978]
[1721138988468,2.94933,3390.6,3390.0,2.2978]
[1721138988669,2.94942,3390.5,3390.0,2.2978]
[1721138989415,2.94959,3390.3,3390.0,2.2978]
[1721138989568,2.94969,3390.2,3389.2,2.3328]
[1721138989777,2.94969,3390.2,3389.3,0.55]
[1721138990510,2.94969,3390.2,3389.3,3.50045]
[1721138991966,2.94942,3390.5,3389.4,2.9503]
[1721138992203,2.9493,3390.7,3389.6,2.95019]
[1721138992505,2.94909,3390.9,3389.7,3.5001]
[1721138992669,2.94915,3390.8,3389.8,2.998429]
[1721138992868,2.94915,3390.8,3389.9,0.55]
[1721138993100,2.94915,3390.8,3389.8,2.998429]
[1721138993101,2.94978,3390.1,3389.8,2.3534]
[1721138993987,2.94922,3390.8,3389.8,2.3534]
[1721138993988,2.94917,3390.8,3389.8,2.3534]
[1721138994187,2.94979,3390.1,3389.8,2.3534]
[1721138994518,6.05787,3391.2,3389.8,2.3534]
[1721138994519,3.109,3391.1,3389.8,2.3534]
[1721138994820,2.95038,3389.4,3388.8,2.4681]
[1721138995169,2.95056,3389.2,3388.8,2.4681]
[1721138995493,2.9498,3390.1,3388.8,2.4681]
[1721138995494,5.90047,3389.6,3388.8,2.4681]
[1721138995704,2.95021,3389.6,3388.8,2.4681]
[1721138995870,2.95011,3389.7,3388.8,2.71491]
[1721138996088,2.95051,3389.3,3388.8,2.4681]
[1721138996295,2.95029,3389.5,3388.8,2.4681]
[1721138996832,2.95012,3389.7,3388.8,2.4681]
[1721138997047,2.95029,3389.5,3388.9,0.55]
[1721138997192,2.95055,3389.2,3388.8,2.4681]
[1721138997826,2.95046,3389.3,3388.8,2.4681]
[1721138998005,2.95033,3389.5,3388.8,2.4681]
[1721138998206,2.95043,3389.4,3388.8,2.4681]
[1721138998717,2.95046,3389.3,3388.8,2.4681]
[1721138999628,6.109,3390.4,3388.8,2.4681]
[1721138999629,2.95012,3389.7,3388.8,2.4681]
[1721139000022,2.95032,3389.5,3388.8,2.4681]
[1721139000237,2.94966,3390.3,3388.8,2.4681]
[1721139000238,2.95055,3389.2,3388.8,2.4681]
[1721139000396,2.95015,3389.7,3388.8,2.4681]
[1721139000591,2.94977,3390.1,3388.8,3.010017]
[1721139000840,2.94992,3390.0,3388.8,2.4681]
[1721139000991,2.95064,3389.1,3388.8,2.4681]
[1721139001237,2.9508,3388.9,3388.8,2.4681]
[1721139001634,5.90134,3389.1,3388.8,2.4681]
[1721139001835,3.109,3389.9,3387.7,7.3]
[1721139002139,2.951,3388.7,3387.7,1.320386]
[1721139002398,2.9507,3389.1,3387.6,2.4952]
[1721139002681,2.95108,3388.6,3387.6,5.44711]
[1721139003337,4.20593844,3389.8,3387.9,2.95166]
[1721139003338,2.95081,3388.9,3387.9,2.95166]
[1721139003536,2.95099,3388.7,3387.8,2.95172]
[1721139003950,0.60296922,3389.6,3387.9,2.95163]
[1721139004150,2.95089,3388.8,3387.9,2.95163]
[1721139004349,2.95038,3389.4,3387.6,2.4952]
[1721139004350,2.95043,3389.4,3388.1,2.4153]
[1721139004557,2.95051,3389.3,3388.2,3.50136]
[1721139004860,2.9504,3389.4,3388.5,2.95115]
[1721139005047,3.0,3389.8,3388.2,0.55]
[1721139005048,2.95007,3389.8,3388.2,0.55]
[1721139005387,2.95073,3389.0,3388.2,0.55]
[1721139006038,2.95073,3389.0,3388.1,2.4153]
[1721139006236,2.95041,3389.4,3388.2,2.95137]
[1721139006438,2.95041,3389.4,3388.2,3.50133]
[1721139006439,2.95046,3389.3,3388.2,3.50133]
[1721139006676,3.0,3390.0,3388.4,2.95122]
[1721139006677,2.95035,3389.5,3388.4,2.95122]
[1721139006887,2.95046,3389.3,3388.5,0.55]
[1721139007182,0.90946983,3390.3,3388.5,0.55]
[1721139007183,2.95013,3389.7,3388.6,2.95098]
[1721139007503,2.95013,3389.7,3388.8,2.2931]
[1721139007705,2.94994,3389.9,3388.9,0.55]
[1721139007866,2.94994,3389.9,3388.9,3.5008]
[1721139008062,2.94976,3390.1,3389.0,2.95068]
[1721139008297,2.94994,3389.9,3389.0,2.95068]
[1721139008499,2.94994,3389.9,3389.1,0.874466]
[1721139008734,2.94977,3390.1,3389.1,0.874466]
[1721139008861,2.94977,3390.1,3389.2,0.55]
[1721139009066,0.60631322,3390.5,3388.8,5.24395]
[1721139009067,2.95009,3389.8,3388.8,2.2931]
[1721139009267,2.95048,3389.3,3388.8,2.2931]
[1721139009462,2.95,3389.9,3388.8,2.2931]
[1721139009703,2.95061,3389.2,3388.8,2.2931]
[1721139010205,2.95044,3389.4,3388.3,2.95124]
[1721139010384,2.95029,3389.5,3388.4,3.85984865]
[1721139010593,2.95029,3389.5,3388.5,2.95108]
[1721139011106,2.95029,3389.5,3388.6,2.95105]
[1721139011802,2.95011,3389.7,3388.6,2.95105]
[1721139012012,3.55627322,3389.9,3388.4,3.85984865]
[1721139012013,0.60631322,3389.9,3389.0,2.95071]
[1721139012208,0.60631322,3389.9,3389.1,6.169691]
[1721139012692,0.60631322,3389.9,3389.2,2.95054]
[1721139012892,0.60631322,3389.9,3389.5,2.95023]
[1721139013274,0.60631322,3389.9,3389.6,2.95019]
[1721139013476,0.60631322,3389.9,3389.7,0.590054]
[1721139013673,0.60631322,3389.9,3389.8,5.32402]
[1721139013882,0.60631322,3389.9,3389.8,5.87402]
[1721139016110,0.60631322,3389.9,3389.8,8.82404]
[1721139017037,0.90946983,3390.1,3390.0,11.95855]
[1721139017242,0.90946983,3390.1,3390.0,16.5195104]
[1721139017542,2.94829,3391.8,3390.7,2.94918]
[1721139017744,2.94846,3391.6,3390.7,2.94918]
[1721139017902,2.94829,3391.8,3390.7,2.94918]
[1721139018336,2.9483,3391.8,3390.7,2.94918]
[1721139018651,2.94838,3391.7,3390.8,0.589854]
[1721139019321,2.94838,3391.7,3390.7,2.94918]
[1721139021020,2.94838,3391.7,3390.8,2.94914]
[1721139021630,2.9482,3391.9,3390.8,2.94914]
[1721139021827,2.9482,3391.9,3390.9,2.4466]
[1721139022067,0.90946983,3392.0,3391.0,2.94896]
[1721139022241,0.90946983,3392.0,3391.1,0.83447]
[1721139022431,2.94804,3392.1,3391.1,0.83447]
[1721139022632,2.94804,3392.1,3391.1,3.78329]
[1721139023061,2.94788,3392.3,3391.1,0.83447]
[1721139023244,2.94764,3392.6,3391.5,2.94849]
[1721139023465,2.94768,3392.5,3391.5,2.94849]
[1721139023635,2.94768,3392.5,3391.2,2.94879]
[1721139023636,2.948,3392.2,3391.2,2.94879]
[1721139023845,3.416,3392.7,3391.1,0.83447]
[1721139023846,2.9481,3392.1,3391.1,0.83447]
[1721139024044,2.94838,3391.7,3390.9,2.4466]
[1721139024250,2.94776,3392.4,3390.9,2.4466]
[1721139024251,2.94864,3391.4,3390.9,2.4466]
[1721139024543,0.02662101,3391.3,3389.8,5.5169]
[1721139024781,0.02662101,3391.3,3389.7,3.540094]
[1721139024782,0.02662101,3391.3,3391.0,2.4079]
[1721139024953,0.02662101,3391.3,3391.1,0.535692]
[1721139025158,2.94829,3391.8,3391.0,2.4079]
[1721139025341,2.94797,3392.2,3391.0,2.4079]
[1721139025547,2.94842,3391.7,3391.0,2.4079]
[1721139025892,2.94855,3391.5,3391.0,2.4079]
[1721139026421,2.94863,3391.4,3391.0,2.4079]
[1721139026619,2.94807,3392.1,3391.0,2.4079]
[1721139026620,2.94841,3391.7,3391.0,2.4079]
[1721139026792,2.94823,3391.9,3391.0,2.64869]
[1721139026991,3.0,3392.5,3391.1,2.94889]
[1721139026992,2.94805,3392.1,3391.1,2.94889]
[1721139027198,0.91021405,3392.6,3391.0,2.64869]
[1721139027199,0.60681034,3392.6,3391.0,2.64869]
[1721139027400,2.94791,3392.3,3391.3,2.94864]
[1721139027798,2.94791,3392.3,3391.4,2.94863]
[1721139028036,2.94791,3392.3,3391.4,3.593357]
[1721139028741,3.60681034,3392.8,3391.5,2.94853]
[1721139028742,2.94751,3392.7,3391.5,2.94853]
[1721139029045,0.91021405,3393.2,3391.4,3.593357]
[1721139029046,1.181672,3394.3,3392.5,2.3043]
[1721139029338,3.52226584,3395.6,3391.6,0.6541887]
[1721139029339,0.30843055,3395.3,3394.2,6.0552]
[1721139029484,0.30843055,3395.3,3394.1,2.3043]
[1721139029685,2.97117889,3395.2,3394.1,2.3043]
[1721139029886,0.29711789,3395.1,3394.1,2.3043]
[1721139030180,0.29711789,3395.1,3393.2,2.94705]
[1721139030306,2.94567,3394.9,3393.4,2.3043]
[1721139030611,3.416,3395.5,3393.6,2.94669]
[1721139030612,2.94525,3395.3,3393.6,2.94669]
[1721139030820,2.94525,3395.3,3393.4,2.3043]
[1721139031118,2.9455,3395.0,3393.4,5.25116]
[1721139031541,6.525,3395.5,3393.7,2.94663]
[1721139031542,2.94544,3395.1,3393.7,2.94663]
[1721139031841,2.94544,3395.1,3393.4,2.3043]
[1721139031842,0.04910788,3394.9,3393.9,2.94645]
[1721139032017,0.1479347,3395.8,3394.7,2.94568]
[1721139032219,0.04910788,3394.8,3394.3,2.9461]
[1721139032417,0.1479347,3395.8,3394.1,2.3043]
[1721139032418,2.94498,3395.6,3394.4,0.55]
[1721139032940,0.1479347,3395.8,3394.4,0.55]
[1721139032941,0.04630641,3395.5,3394.6,2.94584]
[1721139033243,0.04630641,3395.5,3394.7,3.00465572]
[1721139033445,0.1479347,3395.8,3394.9,2.94557]
[1721139033763,0.1479347,3395.8,3395.2,2.94531]
[1721139034040,0.04482371,3395.7,3395.6,2.94498]
[1721139034245,0.1479347,3395.8,3395.6,2.94498]
[1721139034470,0.1479347,3395.8,3395.7,5.8898]
[1721139034606,0.1479347,3395.8,3395.7,6.4398]
[1721139035306,0.1479347,3395.8,3395.0,5.8383]
[1721139035307,0.1479347,3395.8,3395.1,2.94538]
[1721139035670,0.1479347,3395.8,3395.2,3.4953]
[1721139035965,0.1479347,3395.8,3395.0,2.4223]
[1721139035966,0.04347595,3395.7,3395.0,2.4223]
[1721139036250,2.94499,3395.6,3394.4,5.34481]
[1721139036460,0.31364007,3395.5,3394.4,5.34481]
[1721139036768,0.04347595,3395.4,3394.4,5.34474]
[1721139036911,0.04347595,3395.4,3394.5,2.94587]
[1721139037229,0.1479347,3395.8,3394.4,2.3988]
[1721139037438,0.1479347,3395.8,3394.4,5.5078]
[1721139037611,0.04347595,3395.7,3394.5,0.89238]
[1721139037808,0.1479347,3395.8,3395.1,2.3955]
[1721139038105,0.1479347,3395.8,3395.6,2.94492]
[1721139038318,0.1479347,3395.8,3395.7,2.9449]
[1721139038718,0.1479347,3395.8,3395.7,3.4949]
[1721139038922,0.1479347,3395.8,3395.7,0.55]
[1721139039346,0.1479347,3395.8,3395.7,6.789292]
[1721139039961,2.9434,3397.5,3395.8,5.5991]
[1721139040113,2.9434,3397.5,3396.3,2.94431]
[1721139040319,0.04280572,3397.4,3396.4,2.94429]
[1721139040550,0.04280572,3397.4,3395.9,2.94467]
[1721139040871,0.04280572,3397.4,3396.6,2.94411]
[1721139041150,2.94341,3397.5,3396.2,2.94438]
[1721139041378,0.03885448,3397.3,3396.3,0.55]
[1721139041657,2.94324,3397.7,3396.4,2.94427]
[1721139041826,0.03885448,3397.2,3396.4,2.94427]
[1721139042030,2.94326,3397.6,3396.3,1.28833962]
[1721139042031,2.94326,3397.6,3396.5,2.9442]
[1721139042216,0.03885448,3397.1,3396.4,2.94426]
[1721139042415,2.94343,3397.4,3396.4,2.94426]
[1721139042710,0.588669,3397.3,3396.4,2.94426]
[1721139042910,0.03885448,3397.2,3396.4,2.94426]
[1721139043316,2.94326,3397.6,3396.4,2.94426]
[1721139043317,2.94331,3397.6,3396.4,2.94426]
[1721139043519,2.98219448,3397.5,3396.4,2.94426]
[1721139043715,0.03885448,3397.5,3396.4,2.94426]
[1721139043951,0.03885448,3397.5,3396.7,2.94396]
[1721139044131,2.98219448,3397.5,3396.3,0.55]
[1721139044459,3.87472193,3397.5,3396.5,2.94419]
[1721139044666,0.93138193,3397.5,3396.5,2.94419]
[1721139045206,0.03885448,3397.5,3396.3,3.659]
[1721139045353,0.03885448,3397.5,3396.4,5.3861]
[1721139045549,2.94259,3398.4,3397.1,2.94366]
[1721139045749,0.1479347,3399.2,3397.3,2.94351]
[1721139045750,0.03774441,3397.4,3397.3,2.94351]
[1721139045991,2.94222,3398.8,3397.5,2.94333]
[1721139046288,2.94222,3398.8,3397.3,0.05885246]
[1721139046289,2.94197,3399.1,3397.8,2.94307]
[1721139046495,3.0898247,3399.2,3397.6,0.30021825]
[1721139046496,0.03774441,3398.7,3397.6,0.30021825]
[1721139046679,0.1479347,3399.2,3398.1,2.94276]
[1721139046680,2.94195,3399.1,3398.1,2.94276]
[1721139046883,2.94195,3399.1,3397.9,2.94299]
[1721139046884,2.94221,3398.8,3397.9,2.94299]
[1721139047077,0.1479347,3399.2,3397.8,2.94307]
[1721139047275,2.97879774,3398.7,3397.7,2.3641]
[1721139047483,2.94215,3398.9,3397.7,5.30726]
[1721139047662,0.03668637,3398.6,3397.9,2.94298]
[1721139047992,0.03668637,3398.5,3398.4,2.94256]
[1721139048197,0.03668637,3398.5,3398.4,5.88512]
[1721139048493,0.1479347,3399.2,3398.9,2.94212]
[1721139048707,0.1479347,3399.2,3399.0,0.05883064]
[1721139048869,0.1479347,3399.2,3398.9,2.94212]
[1721139049051,0.1479347,3399.2,3398.6,2.94232]
[1721139049255,3.109,3400.8,3398.6,2.94232]
[1721139049256,0.00509165,3401.7,3398.8,2.4815]
[1721139049484,0.00509165,3401.7,3399.3,2.94172]
[1721139049485,2.94074,3400.6,3399.3,2.94172]
[1721139049692,2.94117,3400.1,3399.0,2.4815]
[1721139049848,2.94135,3399.8,3399.0,2.4815]
[1721139050061,2.94135,3399.8,3398.4,3.531062]
[1721139050062,2.94177,3399.4,3398.4,2.4815]
[1721139050375,0.03355989,3399.3,3398.4,2.4815]
[1721139050580,0.03355989,3399.3,3397.0,3.109]
[1721139050581,2.94222,3398.8,3397.0,3.109]
[1721139050774,2.94263,3398.4,3397.0,2.94376]
[1721139050979,2.94282,3398.1,3397.1,2.94364]
[1721139051189,2.94264,3398.4,3397.2,0.05886001]
[1721139051376,0.03364714,3398.0,3397.6,2.94324]
[1721139051551,3.109,3399.8,3397.1,0.836906]
[1721139051552,2.94203,3399.1,3397.9,2.94296]
[1721139051855,2.9417,3399.4,3398.0,2.3886]
[1721139052053,2.94156,3399.6,3398.4,2.94247]
[1721139052252,2.94161,3399.5,3398.5,0.05883691]
[1721139052477,2.94161,3399.5,3398.0,2.3886]
[1721139052478,0.03364714,3399.5,3398.3,2.94262]
[1721139052653,0.03364714,3399.5,3398.7,2.94229]
[1721139052853,2.94193,3399.2,3398.1,2.94275]
[1721139053097,2.94186,3399.3,3398.2,2.94271]
[1721139053297,0.03354424,3399.1,3398.0,2.3886]
[1721139053501,2.94101,3400.2,3398.3,5.88521]
[1721139053796,5.272,3401.0,3398.1,0.55]
[1721139053797,2.94213,3398.9,3398.1,0.55]
[1721139054001,2.94243,3398.6,3398.0,2.3886]
[1721139054296,2.94243,3398.6,3396.2,5.072]
[1721139054297,2.9428,3398.2,3397.3,2.4974]
[1721139054499,2.94264,3398.3,3397.4,2.94341]
[1721139054699,2.94282,3398.1,3397.3,2.4974]
[1721139054867,2.97625678,3398.2,3397.3,2.4974]
[1721139055053,0.03352154,3398.0,3397.3,5.44091]
[1721139055257,2.94273,3398.2,3397.3,5.44091]
[1721139055454,0.43274776,3398.3,3397.3,2.4974]
[1721139055455,2.94282,3398.1,3397.3,2.4974]
[1721139055655,3.27041154,3398.1,3397.3,2.4974]
[1721139055855,2.97634154,3398.1,3397.3,2.4974]
[1721139056286,2.94291,3398.0,3397.3,2.4974]
[1721139056858,0.03352154,3397.9,3397.3,2.4974]
[1721139057500,2.94318,3397.7,3396.6,2.2862]
[1721139057863,2.94351,3397.3,3396.6,2.2862]
[1721139058185,2.94278,3398.2,3396.6,2.2862]
[1721139058186,2.97697054,3397.2,3396.6,2.2862]
[1721139058388,0.03335054,3397.2,3396.6,2.2862]
[1721139058565,2.97695054,3397.2,3396.6,2.2862]
[1721139058763,0.59203105,3397.2,3396.6,2.2862]
[1721139058962,0.59203105,3397.2,3395.9,2.94471]
[1721139058963,2.97677085,3397.1,3395.9,2.3992]
[1721139059208,2.94395,3396.8,3395.9,2.3992]
[1721139059361,0.03306085,3397.1,3395.9,2.3992]
[1721139059567,2.94334,3397.5,3396.2,2.94443]
[1721139059768,0.03306085,3397.0,3396.2,2.94443]
[1721139060077,3.0,3397.9,3396.4,2.94427]
[1721139060078,2.94331,3397.6,3396.4,2.94427]
[1721139060288,0.03306085,3396.9,3396.2,0.828821]
[1721139060475,3.0,3397.9,3396.2,0.828821]
[1721139060476,2.94323,3397.7,3396.2,0.828821]
[1721139060675,2.94332,3397.6,3396.5,2.94419]
[1721139060882,2.97638085,3397.6,3396.5,2.94419]
[1721139061077,0.03306085,3397.6,3396.6,2.48866925]
[1721139061317,2.94259,3398.4,3397.0,2.9437]
[1721139061479,2.94267,3398.3,3397.1,0.55]
[1721139061678,0.03306085,3398.2,3397.2,2.94358]
[1721139061878,2.94249,3398.5,3397.3,3.49347]
[1721139062082,2.94249,3398.5,3397.3,4.137175]
[1721139062317,2.97556402,3398.4,3397.3,4.137175]
[1721139062514,0.03298402,3398.4,3396.6,2.4298]
[1721139062823,2.94334,3397.5,3396.7,0.55]
[1721139063185,0.03298402,3397.4,3396.7,0.55]
[1721139064321,2.97640402,3397.4,3396.7,0.55]
[1721139064492,0.03298402,3397.4,3396.7,0.55]
[1721139064696,2.2983,3398.7,3396.7,0.55]
[1721139064697,2.94256,3398.4,3397.0,2.94371]
[1721139064878,1.7,3400.0,3397.5,2.94333]
[1721139064879,0.03298402,3398.3,3397.5,2.94333]
[1721139065083,2.94283,3398.1,3397.1,5.97943]
[1721139065284,2.97589402,3398.0,3397.1,2.4858]
[1721139065522,2.94374,3397.1,3395.9,2.3637]
[1721139065727,2.944,3396.8,3395.9,2.3637]
[1721139065908,2.94379,3397.0,3395.9,2.3637]
[1721139065909,2.9441,3396.7,3395.9,2.3637]
[1721139066080,0.294374,3397.1,3395.9,2.3637]
[1721139066081,2.97714766,3396.6,3395.9,2.3637]
[1721139066283,2.97714766,3396.6,3396.0,0.05888448]
[1721139066284,0.03302766,3396.6,3396.0,0.05888448]
[1721139066481,6.51468,3398.3,3396.0,0.05888448]
[1721139066482,2.9435,3397.4,3396.0,0.05888448]
[1721139066802,0.0329875,3397.3,3396.5,2.94418]
[1721139067007,0.0329875,3397.3,3396.1,3.66215845]
[1721139067008,0.0329875,3397.3,3396.9,2.94383]
[1721139067208,2.94306,3397.9,3397.0,2.4925]
[1721139067518,0.0327954,3397.8,3397.0,2.4925]
[1721139067737,2.94308,3397.8,3397.0,2.4925]
[1721139067938,2.94255,3398.5,3397.0,2.4925]
[1721139067939,0.3271034,3397.7,3397.0,2.4925]
[1721139068108,2.94255,3398.5,3397.0,2.4925]
[1721139068109,2.94334,3397.5,3397.0,2.4925]
[1721139068308,0.03272874,3397.4,3397.1,0.05886642]
[1721139068509,0.03272874,3397.4,3397.0,2.4925]
[1721139068712,2.9426,3398.4,3397.0,2.4925]
[1721139068713,2.97623874,3397.3,3397.0,2.4925]
[1721139069128,0.03272874,3397.3,3397.0,2.4925]
[1721139069338,2.94305,3397.9,3397.0,2.74175]
[1721139069633,2.94285,3398.1,3397.0,5.43627]
[1721139069634,0.03272874,3397.2,3397.0,5.43627]
[1721139069839,2.2869,3398.3,3396.1,2.84855845]
[1721139070000,2.9436,3397.2,3396.1,2.2954]
[1721139070333,0.03277764,3397.1,3396.1,2.2954]
[1721139070524,2.94369,3397.1,3396.1,5.23994]
[1721139070722,0.0328124,3397.0,3396.2,2.94439]
[1721139070932,2.94369,3397.1,3396.1,2.2954]
[1721139071144,0.03275637,3397.0,3396.1,2.2954]
[1721139071303,0.03275637,3397.0,3396.2,2.94446]
[1721139071499,0.89757188,3400.3,3396.2,2.94446]
[1721139071500,2.94343,3397.4,3396.2,2.94446]
[1721139071704,2.94343,3397.4,3396.1,2.2954]
[1721139071705,0.03275637,3397.3,3396.6,2.94409]
[1721139071915,2.94285,3398.1,3396.7,0.60886623]
[1721139072115,0.03275637,3398.0,3396.8,5.59435562]
[1721139072298,0.03275637,3398.0,3396.9,0.55]
[1721139072504,0.03275637,3398.0,3396.8,2.65049562]
[1721139072505,2.94328,3397.6,3396.8,2.65049562]
[1721139072808,0.03274764,3397.5,3397.0,2.94376]
[1721139073008,0.03274764,3397.5,3397.1,0.55]
[1721139073241,2.94188,3399.2,3397.1,0.55]
[1721139073242,2.94162,3399.5,3397.5,2.94333]
[1721139073413,2.94252,3398.5,3397.6,0.55]
[1721139073741,2.94208,3399.0,3397.3,2.94348]
[1721139073938,2.94273,3398.2,3397.1,2.94365]
[1721139074126,6.05088,3399.2,3396.8,2.2952]
[1721139074443,3.572,3399.4,3396.8,2.2952]
[1721139074444,2.94352,3397.3,3396.8,2.2952]
[1721139074947,2.94258,3398.4,3396.0,2.4085]
[1721139074948,2.94392,3396.9,3396.0,2.4085]
[1721139075133,2.94403,3396.8,3396.0,2.4085]
[1721139075343,2.94404,3396.7,3396.0,2.4085]
[1721139075520,2.944,3396.8,3396.0,2.4085]
[1721139075718,2.94392,3396.9,3396.0,2.4085]
[1721139075918,2.94392,3396.9,3395.4,3.109]
[1721139075919,2.94403,3396.7,3395.4,2.4454]
[1721139076160,0.294392,3396.9,3395.4,2.4454]
[1721139076489,2.94418,3396.6,3395.6,2.94491]
[1721139076828,2.9442,3396.5,3395.6,2.94491]
[1721139077365,2.94418,3396.6,3395.5,2.94507]
[1721139077366,2.94412,3396.6,3395.7,2.94488]
[1721139077720,3.0,3397.4,3395.7,2.94488]
[1721139077721,2.94366,3397.2,3395.9,5.20365]
[1721139077953,2.94362,3397.2,3396.2,2.94439]
[1721139078170,2.94362,3397.2,3396.3,1.193893]
[1721139078330,2.94362,3397.2,3396.1,2.94454]
[1721139078522,2.94362,3397.2,3396.2,0.55]
[1721139078923,2.9434,3397.5,3396.3,3.00319397]
[1721139079136,2.94353,3397.3,3396.4,0.55]
[1721139079339,2.9434,3397.5,3396.5,2.94419]
[1721139079564,2.94343,3397.4,3396.5,0.643851]
[1721139079866,2.94383,3397.0,3395.9,5.20369]
[1721139080065,2.94386,3396.9,3396.0,0.55]
[1721139080231,2.94383,3397.0,3396.0,3.49461]
[1721139080425,2.94362,3397.2,3396.0,4.069971]
[1721139080856,2.94384,3397.0,3396.0,4.069971]
[1721139081056,2.94362,3397.2,3396.1,2.94452]
[1721139081267,0.03253375,3396.9,3396.4,2.94428]
[1721139081446,2.94324,3397.7,3396.5,2.9442]
[1721139081739,3.0,3398.1,3396.7,5.27043]
[1721139081740,0.03253375,3396.8,3396.7,5.27043]
[1721139081935,2.94283,3398.1,3397.1,2.94366]
[1721139081936,2.94285,3398.1,3397.1,2.94366]
[1721139082160,2.3087,3399.2,3396.7,8.37938]
[1721139082161,2.94238,3398.6,3396.7,8.37938]
[1721139082363,2.94238,3398.6,3396.6,1.79442]
[1721139082364,0.03253375,3398.0,3397.6,5.26961]
[1721139082568,2.94223,3398.8,3397.6,2.3264]
[1721139082569,2.94282,3398.1,3397.6,2.3264]
[1721139082982,0.0326106,3398.0,3396.8,4.51125]
[1721139083190,2.94303,3397.9,3396.9,5.23844]
[1721139083486,2.94258,3398.4,3396.9,2.2946]
[1721139083642,0.0326106,3397.8,3396.9,2.2946]
[1721139083847,2.94299,3398.0,3396.9,5.23842]
[1721139084048,6.95927078,3399.0,3396.9,5.23842]
[1721139084049,2.9757806,3397.7,3396.9,2.2946]
[1721139084380,8.34578,3398.8,3396.9,2.2946]
[1721139084381,2.94305,3397.9,3396.9,2.2946]
[1721139084595,0.03262457,3397.6,3397.0,3.49376]
[1721139084776,2.94283,3398.1,3397.0,3.49376]
[1721139084777,2.94282,3398.1,3397.1,2.94368]
[1721139085085,7.37,3399.3,3397.8,2.39]
[1721139085392,3.85326723,3399.6,3397.8,2.39]
[1721139085547,2.94206,3399.0,3397.9,2.94298]
[1721139085742,2.94218,3398.9,3397.9,2.94298]
[1721139085948,2.94221,3398.8,3397.9,2.94298]
[1721139086147,2.94206,3399.0,3398.0,2.94289]
[1721139086148,2.9421,3399.0,3398.0,2.94289]
[1721139086389,2.94194,3399.2,3398.0,2.94289]
[1721139086552,2.94209,3399.0,3398.0,2.94289]
[1721139086896,2.94228,3398.8,3397.8,2.39]
[1721139087092,2.94228,3398.8,3397.9,0.55]
[1721139087699,2.94209,3399.0,3397.9,0.55]
[1721139087700,2.94209,3399.0,3398.0,2.94288]
[1721139087862,0.294194,3399.1,3398.2,2.94273]
[1721139088208,2.94155,3399.6,3398.1,0.55]
[1721139088344,2.94155,3399.6,3397.9,3.109]
[1721139088345,0.03280794,3399.0,3398.2,2.4236]
[1721139088546,0.03280794,3399.0,3398.9,2.94212]
[1721139088753,0.03280794,3399.0,3398.5,6.05146]
[1721139088754,2.94118,3400.0,3399.0,2.94199]
[1721139089147,0.03294061,3399.9,3399.0,2.94199]
[1721139089346,0.03294061,3399.9,3399.1,2.4904]
[1721139089597,0.03294061,3399.8,3399.5,2.94155]
[1721139089758,0.03294061,3399.8,3399.2,2.94185]
[1721139089944,0.91170723,3400.8,3399.1,2.4904]
[1721139089945,2.94115,3400.1,3399.1,2.4904]
[1721139090141,2.94117,3400.0,3399.1,5.43231]
[1721139090360,2.94117,3400.0,3399.1,2.4904]
[1721139090361,3.56231961,3400.0,3399.1,2.4904]
[1721139090611,2.94131,3399.9,3399.1,2.4904]
[1721139090757,2.94149,3399.7,3399.1,2.4904]
[1721139090965,2.97446061,3399.6,3399.1,2.4904]
[1721139091295,0.03294061,3399.6,3399.1,2.4904]
[1721139091527,0.62451467,3399.6,3399.1,2.4904]
[1721139091705,2.94178,3399.3,3398.7,7.3]
[1721139091997,2.94178,3399.3,3398.5,2.2709]
[1721139091998,2.94187,3399.2,3398.5,2.2709]
[1721139092357,2.97481061,3399.2,3398.5,2.2709]
[1721139092813,0.03294061,3399.2,3398.6,0.05884108]
[1721139092965,0.03294061,3399.2,3398.7,2.94223]
[1721139093163,2.94151,3399.7,3398.7,3.43666154]
[1721139093500,0.03294061,3399.6,3398.7,3.43666154]
[1721139093704,2.94221,3398.8,3398.5,2.2709]
[1721139094028,2.9424,3398.6,3398.3,7.3]
[1721139094177,2.9424,3398.6,3397.8,2.4822]
[1721139094178,2.94223,3398.8,3397.8,2.4822]
[1721139094372,2.94244,3398.6,3397.8,2.4822]
[1721139094563,2.94253,3398.5,3397.8,2.4822]
[1721139094765,2.97574466,3398.5,3397.8,2.4822]
[1721139095401,0.03321466,3398.5,3397.8,2.4822]
[1721139095606,2.94215,3398.9,3397.8,2.4822]
[1721139095760,2.94239,3398.6,3397.8,2.4822]
[1721139096218,2.94225,3398.8,3397.8,2.4822]
[1721139096501,0.03188203,3398.5,3398.2,2.94272]
[1721139096705,0.03188203,3398.5,3397.8,2.4822]
[1721139096706,0.03190826,3398.7,3398.4,2.94256]
[1721139096917,1.21682342,3399.9,3398.4,2.94256]
[1721139096918,3.85419885,3399.8,3398.6,2.3011]
[1721139097201,2.94127,3399.9,3398.7,0.55]
[1721139097392,2.94153,3399.6,3398.7,0.55]
[1721139097597,0.03190826,3399.7,3398.6,2.3011]